[Event "Early-Titled-Tuesday-Blitz-November-28-2023"]
[Site "Chess.com"]
[Date "2023.11.28"]
[Round "3"]
[White "LouieKov2022"]
[Black "chesstrainer2042"]
[Result "0-1"]
[WhiteElo "2599"]
[BlackElo "2525"]
[TimeControl "180+1"]
[EndTime "8:29:14 PST"]
[Termination "chesstrainer2042 won by checkmate"]

1. e4 {[%clk 0:02:57.4]} 1... e5 {[%clk 0:02:59.4]} 2. d4 {[%clk 0:02:54.6]}
2... exd4 {[%clk 0:02:58.6]} 3. Qxd4 {[%clk 0:02:55.5]} 3... Nc6 {[%clk
0:02:59.2]} 4. Qc4 {[%clk 0:02:55.8]} 4... Nf6 {[%clk 0:02:55.3]} 5. Nc3 {[%clk
0:02:56.4]} 5... Bb4 {[%clk 0:02:54.4]} 6. Bd2 {[%clk 0:02:56.8]} 6... O-O
{[%clk 0:02:49.3]} 7. O-O-O {[%clk 0:02:56.8]} 7... Re8 {[%clk 0:02:47.9]} 8. f3
{[%clk 0:02:50.4]} 8... h6 {[%clk 0:02:33.7]} 9. Nge2 {[%clk 0:02:34.3]} 9... d6
{[%clk 0:02:28.3]} 10. Nf4 {[%clk 0:02:34.3]} 10... a5 {[%clk 0:02:21.7]} 11. a3
{[%clk 0:02:00.4]} 11... Ne5 {[%clk 0:02:19.9]} 12. Qe2 {[%clk 0:01:46.3]} 12...
Bc5 {[%clk 0:02:07]} 13. Be3 {[%clk 0:01:39.7]} 13... Bxe3+ {[%clk 0:01:57.2]}
14. Qxe3 {[%clk 0:01:40.6]} 14... Bd7 {[%clk 0:01:57.2]} 15. h4 {[%clk
0:01:34.8]} 15... Qb8 {[%clk 0:01:48.8]} 16. g4 {[%clk 0:01:33.5]} 16... Nh7
{[%clk 0:01:19.2]} 17. g5 {[%clk 0:00:47.5]} 17... b5 {[%clk 0:01:18.9]} 18.
gxh6 {[%clk 0:00:39.5]} 18... b4 {[%clk 0:01:19.1]} 19. Nb1 {[%clk 0:00:40]}
19... g6 {[%clk 0:00:54.2]} 20. Rg1 {[%clk 0:00:31.3]} 20... Qb7 {[%clk
0:00:47.8]} 21. h5 {[%clk 0:00:20.7]} 21... g5 {[%clk 0:00:46.6]} 22. Nd5 {[%clk
0:00:20.7]} 22... Kh8 {[%clk 0:00:35.9]} 23. Rxg5 {[%clk 0:00:19.8]} 23... bxa3
{[%clk 0:00:30.2]} 24. Nxa3 {[%clk 0:00:19.7]} 24... Rab8 {[%clk 0:00:30.5]} 25.
b3 {[%clk 0:00:20.2]} 25... c6 {[%clk 0:00:25.6]} 26. Nc3 {[%clk 0:00:11.3]}
26... a4 {[%clk 0:00:19.6]} 27. Rg7 {[%clk 0:00:10]} 27... Qb4 {[%clk
0:00:09.4]} 28. Kb2 {[%clk 0:00:08.4]} 28... axb3 {[%clk 0:00:09.7]} 29. Qg1
{[%clk 0:00:04.2]} 29... bxc2+ {[%clk 0:00:07.1]} 30. Kc1 {[%clk 0:00:04.6]}
30... Qb2+ {[%clk 0:00:05.8]} 31. Kd2 {[%clk 0:00:03.7]} 31... c1=Q+ {[%clk
0:00:05.6]} 32. Ke1 {[%clk 0:00:02.4]} 32... Qbd2# {[%clk 0:00:05.9]} 0-1

[Event "Early-Titled-Tuesday-Blitz-November-28-2023"]
[Site "Chess.com"]
[Date "2023.11.28"]
[Round "3"]
[White "Viacheslav92"]
[Black "falzehope0"]
[Result "1-0"]
[WhiteElo "2568"]
[BlackElo "2358"]
[TimeControl "180+1"]
[EndTime "8:29:15 PST"]
[Termination "Viacheslav92 won by resignation"]

1. e4 {[%clk 0:03:00.1]} 1... d5 {[%clk 0:02:45.6]} 2. exd5 {[%clk 0:02:58.1]}
2... Nf6 {[%clk 0:02:45.5]} 3. d4 {[%clk 0:02:56.6]} 3... Qxd5 {[%clk
0:02:44.8]} 4. Nf3 {[%clk 0:02:56.6]} 4... Bg4 {[%clk 0:02:44.1]} 5. Be2 {[%clk
0:02:57.2]} 5... Nc6 {[%clk 0:02:44.1]} 6. O-O {[%clk 0:02:57.6]} 6... O-O-O
{[%clk 0:02:44.2]} 7. c3 {[%clk 0:02:57.3]} 7... Qh5 {[%clk 0:02:43.5]} 8. h3
{[%clk 0:02:57.4]} 8... e5 {[%clk 0:02:40.9]} 9. Bg5 {[%clk 0:02:48.7]} 9...
Bxf3 {[%clk 0:02:31.3]} 10. Bxf3 {[%clk 0:02:38.3]} 10... Qxg5 {[%clk
0:02:30.5]} 11. Bxc6 {[%clk 0:02:39]} 11... bxc6 {[%clk 0:02:30]} 12. Qa4 {[%clk
0:02:39.8]} 12... exd4 {[%clk 0:02:24.6]} 13. Qxa7 {[%clk 0:02:34.3]} 13... Bc5
{[%clk 0:02:19.5]} 14. Qa6+ {[%clk 0:02:29.9]} 14... Kd7 {[%clk 0:02:16.7]} 15.
cxd4 {[%clk 0:02:30.1]} 15... Bxd4 {[%clk 0:02:11.6]} 16. Nc3 {[%clk 0:02:30.6]}
16... Rhe8 {[%clk 0:01:47.3]} 17. Rad1 {[%clk 0:02:27.1]} 17... c5 {[%clk
0:01:42.9]} 18. Nb5 {[%clk 0:02:23]} 18... Qd5 {[%clk 0:01:24]} 19. Qa4 {[%clk
0:02:11.7]} 19... Ke7 {[%clk 0:00:33.5]} 20. Nxc7 {[%clk 0:02:09.2]} 20... Qd6
{[%clk 0:00:19.5]} 21. Rfe1+ {[%clk 0:02:01.7]} 21... Kf8 {[%clk 0:00:19.3]} 22.
Nxe8 {[%clk 0:01:57.1]} 22... Nxe8 {[%clk 0:00:17.8]} 23. Qc2 {[%clk 0:01:47.5]}
23... Nf6 {[%clk 0:00:16.6]} 24. a3 {[%clk 0:01:48]} 24... g6 {[%clk 0:00:15.7]}
25. b4 {[%clk 0:01:48]} 25... Kg7 {[%clk 0:00:15.2]} 26. bxc5 {[%clk 0:01:46.5]}
26... Qd5 {[%clk 0:00:14.4]} 27. c6 {[%clk 0:01:42.1]} 27... Ne8 {[%clk
0:00:13.2]} 28. Re2 {[%clk 0:01:22.1]} 28... Bxf2+ {[%clk 0:00:11.7]} 29. Kxf2
{[%clk 0:01:21.1]} 29... Qxd1 {[%clk 0:00:11.9]} 30. Qxd1 {[%clk 0:01:20.9]}
30... Rxd1 {[%clk 0:00:12]} 31. Rxe8 {[%clk 0:01:21.5]} 31... Rc1 {[%clk
0:00:12.6]} 32. Rc8 {[%clk 0:01:04.2]} 32... Kf6 {[%clk 0:00:12.2]} 33. c7
{[%clk 0:01:01.5]} 33... Ke7 {[%clk 0:00:12.3]} 34. a4 {[%clk 0:00:52.6]} 34...
Kd7 {[%clk 0:00:11.3]} 35. Rf8 {[%clk 0:00:52.1]} 35... Rxc7 {[%clk 0:00:10.4]}
36. Rxf7+ {[%clk 0:00:52.1]} 36... Kc6 {[%clk 0:00:10.9]} 37. Rxc7+ {[%clk
0:00:52.7]} 37... Kxc7 {[%clk 0:00:11.8]} 38. Kf3 {[%clk 0:00:52.8]} 38... Kb6
{[%clk 0:00:12.2]} 39. Kf4 {[%clk 0:00:53.4]} 39... h6 {[%clk 0:00:12.3]} 40.
Ke5 {[%clk 0:00:53.4]} 40... Ka5 {[%clk 0:00:12.7]} 41. Kf6 {[%clk 0:00:53.8]}
41... g5 {[%clk 0:00:13.2]} 42. Kg6 {[%clk 0:00:54.2]} 42... Kxa4 {[%clk
0:00:13]} 43. Kxh6 {[%clk 0:00:54.8]} 43... Kb5 {[%clk 0:00:13.9]} 44. Kxg5
{[%clk 0:00:55.1]} 44... Kc6 {[%clk 0:00:14.8]} 45. Kf6 {[%clk 0:00:55.6]} 45...
Kd7 {[%clk 0:00:15.7]} 46. Kf7 {[%clk 0:00:56.1]} 46... Kd6 {[%clk 0:00:16]} 47.
h4 {[%clk 0:00:56.6]} 47... Ke5 {[%clk 0:00:16.9]} 48. h5 {[%clk 0:00:57.2]}
48... Kf4 {[%clk 0:00:17.8]} 49. h6 {[%clk 0:00:57.7]} 49... Kg5 {[%clk
0:00:18.7]} 50. h7 {[%clk 0:00:58.6]} 50... Kg4 {[%clk 0:00:19.1]} 51. h8=Q
{[%clk 0:00:58.7]} 51... Kg3 {[%clk 0:00:20]} 52. Qg7+ {[%clk 0:00:41.4]} 52...
Kh4 {[%clk 0:00:16.7]} 53. Kf6 {[%clk 0:00:31]} 1-0

[Event "Early-Titled-Tuesday-Blitz-November-28-2023"]
[Site "Chess.com"]
[Date "2023.11.28"]
[Round "3"]
[White "Elsa167"]
[Black "carokannlover213"]
[Result "1-0"]
[WhiteElo "2906"]
[BlackElo "2688"]
[TimeControl "180+1"]
[EndTime "8:29:18 PST"]
[Termination "Elsa167 won by resignation"]

1. d4 {[%clk 0:03:00.9]} 1... Nf6 {[%clk 0:02:57.6]} 2. c4 {[%clk 0:03:01]} 2...
e6 {[%clk 0:02:58]} 3. Nf3 {[%clk 0:03:01.2]} 3... d5 {[%clk 0:02:57.5]} 4. Nc3
{[%clk 0:03:01.8]} 4... Bb4 {[%clk 0:02:56.5]} 5. Bg5 {[%clk 0:03:01.8]} 5... h6
{[%clk 0:02:54.5]} 6. Bxf6 {[%clk 0:03:02.2]} 6... Qxf6 {[%clk 0:02:55.4]} 7. e3
{[%clk 0:03:02.9]} 7... O-O {[%clk 0:02:54.6]} 8. Rc1 {[%clk 0:03:02.7]} 8... c5
{[%clk 0:02:54]} 9. cxd5 {[%clk 0:03:01.2]} 9... exd5 {[%clk 0:02:46.4]} 10.
dxc5 {[%clk 0:03:01.2]} 10... Rd8 {[%clk 0:02:44.9]} 11. Qd4 {[%clk 0:02:59.7]}
11... Nc6 {[%clk 0:02:34.9]} 12. Qxf6 {[%clk 0:02:59.3]} 12... gxf6 {[%clk
0:02:35.8]} 13. a3 {[%clk 0:02:38.1]} 13... Bxc5 {[%clk 0:02:35.6]} 14. Nb5
{[%clk 0:02:37.7]} 14... Bb6 {[%clk 0:02:34.7]} 15. Be2 {[%clk 0:02:29.1]} 15...
f5 {[%clk 0:02:35.6]} 16. g3 {[%clk 0:02:25.9]} 16... a6 {[%clk 0:02:31.1]} 17.
Nbd4 {[%clk 0:02:25.8]} 17... Nxd4 {[%clk 0:02:31.1]} 18. Nxd4 {[%clk
0:02:25.5]} 18... Bxd4 {[%clk 0:02:30.4]} 19. exd4 {[%clk 0:02:26.4]} 19... f4
{[%clk 0:02:30.4]} 20. Kd2 {[%clk 0:02:19.7]} 20... Bf5 {[%clk 0:02:26.9]} 21.
Rc7 {[%clk 0:02:16.6]} 21... Rac8 {[%clk 0:02:01.3]} 22. Rhc1 {[%clk 0:02:11.1]}
22... Rxc7 {[%clk 0:02:00.7]} 23. Rxc7 {[%clk 0:02:12]} 23... Rc8 {[%clk
0:01:55.9]} 24. Rxb7 {[%clk 0:02:02.1]} 24... Rc2+ {[%clk 0:01:54.7]} 25. Kd1
{[%clk 0:02:02.6]} 25... f3 {[%clk 0:01:49.2]} 26. Bxf3 {[%clk 0:02:02.4]} 26...
Rxf2 {[%clk 0:01:49.8]} 27. Bxd5 {[%clk 0:02:01.9]} 27... Bg6 {[%clk 0:01:35.3]}
28. h4 {[%clk 0:01:55.2]} 28... Rf1+ {[%clk 0:01:28.7]} 29. Ke2 {[%clk
0:01:48.9]} 29... Rg1 {[%clk 0:01:28.7]} 30. Kf2 {[%clk 0:01:49]} 30... Rd1
{[%clk 0:01:28.2]} 31. Bc4 {[%clk 0:01:24.9]} 31... a5 {[%clk 0:01:11.1]} 32. d5
{[%clk 0:01:22.7]} 32... Rd4 {[%clk 0:01:11.1]} 33. b3 {[%clk 0:01:16.3]} 33...
a4 {[%clk 0:01:01.3]} 34. Ke3 {[%clk 0:01:15.9]} 34... Re4+ {[%clk 0:01:01.1]}
35. Kf3 {[%clk 0:01:16]} 35... Rd4 {[%clk 0:00:55]} 36. Rb4 {[%clk 0:00:58.8]}
36... axb3 {[%clk 0:00:47.3]} 37. Bxb3 {[%clk 0:00:58.3]} 37... Rd3+ {[%clk
0:00:47.9]} 38. Kf4 {[%clk 0:00:58.6]} 38... Kf8 {[%clk 0:00:42.3]} 39. a4
{[%clk 0:00:58.3]} 39... Ke7 {[%clk 0:00:41.9]} 40. a5 {[%clk 0:00:58.9]} 40...
Rc3 {[%clk 0:00:28.4]} 41. a6 {[%clk 0:00:58.8]} 41... Rc8 {[%clk 0:00:28]} 42.
Ke5 {[%clk 0:00:39.3]} 42... f6+ {[%clk 0:00:26.7]} 43. Kd4 {[%clk 0:00:39.5]}
43... Ra8 {[%clk 0:00:27.6]} 44. Bc4 {[%clk 0:00:39.2]} 44... Be8 {[%clk
0:00:23.7]} 45. Rb7+ {[%clk 0:00:38.4]} 45... Kd6 {[%clk 0:00:22.8]} 46. Rb6+
{[%clk 0:00:38.6]} 46... Ke7 {[%clk 0:00:23]} 47. d6+ {[%clk 0:00:35.7]} 47...
Kd8 {[%clk 0:00:22]} 48. Bd5 {[%clk 0:00:31.9]} 48... Ra7 {[%clk 0:00:20.8]} 49.
Rb8+ {[%clk 0:00:31.6]} 49... Kd7 {[%clk 0:00:20.6]} 50. Rb7+ {[%clk 0:00:32.3]}
50... Kxd6 {[%clk 0:00:21]} 51. Rxa7 {[%clk 0:00:32.7]} 51... Bc6 {[%clk
0:00:17.2]} 52. Bxc6 {[%clk 0:00:32.9]} 52... f5 {[%clk 0:00:18.1]} 53. Rd7+
{[%clk 0:00:32.8]} 53... Ke6 {[%clk 0:00:17.8]} 54. a7 {[%clk 0:00:32.9]} 54...
f4 {[%clk 0:00:18.7]} 55. a8=Q {[%clk 0:00:33.6]} 55... fxg3 {[%clk 0:00:19.1]}
56. Qe8+ {[%clk 0:00:34.2]} 56... Kf5 {[%clk 0:00:20]} 57. Qe5+ {[%clk
0:00:34.2]} 1-0

[Event "Early-Titled-Tuesday-Blitz-November-28-2023"]
[Site "Chess.com"]
[Date "2023.11.28"]
[Round "3"]
[White "ural58"]
[Black "wadsy27"]
[Result "0-1"]
[WhiteElo "2459"]
[BlackElo "2629"]
[TimeControl "180+1"]
[EndTime "8:29:18 PST"]
[Termination "wadsy27 won by checkmate"]

1. e4 {[%clk 0:02:52.6]} 1... Nc6 {[%clk 0:02:57.2]} 2. Nf3 {[%clk 0:02:51.4]}
2... d6 {[%clk 0:02:44.3]} 3. d4 {[%clk 0:02:23.4]} 3... g6 {[%clk 0:02:43.9]}
4. d5 {[%clk 0:02:22.4]} 4... Nb8 {[%clk 0:02:43.6]} 5. h4 {[%clk 0:02:11.6]}
5... Nf6 {[%clk 0:02:40]} 6. Bd3 {[%clk 0:02:08.3]} 6... Bg4 {[%clk 0:02:37.3]}
7. c4 {[%clk 0:02:00.5]} 7... Nbd7 {[%clk 0:02:35.5]} 8. Be3 {[%clk 0:01:59.1]}
8... Bg7 {[%clk 0:02:34.3]} 9. Nc3 {[%clk 0:01:58.2]} 9... O-O {[%clk
0:02:27.1]} 10. Qb3 {[%clk 0:01:53.9]} 10... b6 {[%clk 0:02:06.7]} 11. Na4
{[%clk 0:01:32.5]} 11... Nc5 {[%clk 0:01:59.4]} 12. Nxc5 {[%clk 0:01:32.3]}
12... bxc5 {[%clk 0:01:59.2]} 13. Qa3 {[%clk 0:01:31.1]} 13... Rb8 {[%clk
0:01:52.7]} 14. Rb1 {[%clk 0:01:30]} 14... c6 {[%clk 0:01:38.3]} 15. Nd2 {[%clk
0:01:24.2]} 15... Qb6 {[%clk 0:01:24.4]} 16. f3 {[%clk 0:01:23.6]} 16... Bd7
{[%clk 0:01:23]} 17. b3 {[%clk 0:01:19.4]} 17... a5 {[%clk 0:01:11.6]} 18. O-O
{[%clk 0:01:16.3]} 18... Qb4 {[%clk 0:01:09.8]} 19. Qc1 {[%clk 0:01:09.1]} 19...
Nh5 {[%clk 0:01:03.7]} 20. f4 {[%clk 0:00:55.7]} 20... e6 {[%clk 0:00:34.5]} 21.
g4 {[%clk 0:00:52.6]} 21... Nf6 {[%clk 0:00:21.4]} 22. dxe6 {[%clk 0:00:52]}
22... Nxg4 {[%clk 0:00:17.9]} 23. exd7 {[%clk 0:00:42.5]} 23... Nxe3 {[%clk
0:00:18.1]} 24. Rf3 {[%clk 0:00:42.5]} 24... Bd4 {[%clk 0:00:16.4]} 25. Kh1
{[%clk 0:00:39.6]} 25... Qb7 {[%clk 0:00:16.2]} 26. f5 {[%clk 0:00:34.3]} 26...
Qxd7 {[%clk 0:00:16.3]} 27. Qe1 {[%clk 0:00:25.8]} 27... Ng4 {[%clk 0:00:12.5]}
28. Rf4 {[%clk 0:00:21.7]} 28... Ne5 {[%clk 0:00:12.3]} 29. Be2 {[%clk
0:00:20.9]} 29... gxf5 {[%clk 0:00:10.9]} 30. Rxf5 {[%clk 0:00:18.4]} 30... Kh8
{[%clk 0:00:11.2]} 31. Nf3 {[%clk 0:00:17.9]} 31... Nxf3 {[%clk 0:00:09.8]} 32.
Bxf3 {[%clk 0:00:17.9]} 32... Rg8 {[%clk 0:00:08.6]} 33. Bh5 {[%clk 0:00:17.5]}
33... f6 {[%clk 0:00:07.9]} 34. Qe2 {[%clk 0:00:17.4]} 34... Rg3 {[%clk
0:00:06.7]} 35. Rbf1 {[%clk 0:00:17.1]} 35... Rbg8 {[%clk 0:00:06.3]} 36. R1f3
{[%clk 0:00:15.6]} 36... Rg1+ {[%clk 0:00:05.2]} 37. Kh2 {[%clk 0:00:15.9]}
37... Be5+ {[%clk 0:00:05.7]} 38. Rxe5 {[%clk 0:00:14.1]} 38... fxe5 {[%clk
0:00:05.9]} 39. Rf5 {[%clk 0:00:14]} 39... Qg7 {[%clk 0:00:04]} 40. Rg5 {[%clk
0:00:11.7]} 40... Rxg5 {[%clk 0:00:04.3]} 41. hxg5 {[%clk 0:00:11.6]} 41... Qxg5
{[%clk 0:00:04.9]} 42. Bf3 {[%clk 0:00:12.4]} 42... Qg1+ {[%clk 0:00:04.6]} 43.
Kh3 {[%clk 0:00:12.5]} 43... Qg3# {[%clk 0:00:05.3]} 0-1

[Event "Early-Titled-Tuesday-Blitz-November-28-2023"]
[Site "Chess.com"]
[Date "2023.11.28"]
[Round "3"]
[White "RamonManon0g"]
[Black "BigAl"]
[Result "0-1"]
[WhiteElo "2340"]
[BlackElo "2557"]
[TimeControl "180+1"]
[EndTime "8:29:22 PST"]
[Termination "BigAl won by resignation"]

1. e4 {[%clk 0:03:00.9]} 1... c6 {[%clk 0:02:56.6]} 2. d4 {[%clk 0:03:00.2]}
2... d5 {[%clk 0:02:56.3]} 3. e5 {[%clk 0:03:00.6]} 3... Bf5 {[%clk 0:02:56]} 4.
Nd2 {[%clk 0:03:00.4]} 4... e6 {[%clk 0:02:56.1]} 5. Nb3 {[%clk 0:03:00.7]} 5...
Ne7 {[%clk 0:02:56.1]} 6. Nf3 {[%clk 0:02:58.3]} 6... Ng6 {[%clk 0:02:56.2]} 7.
Be2 {[%clk 0:02:58.8]} 7... Nd7 {[%clk 0:02:56.2]} 8. O-O {[%clk 0:02:58.9]}
8... f6 {[%clk 0:02:56.8]} 9. exf6 {[%clk 0:02:56.2]} 9... Qxf6 {[%clk
0:02:57.7]} 10. c4 {[%clk 0:02:55.1]} 10... Bd6 {[%clk 0:02:57.2]} 11. Bg5
{[%clk 0:02:47.2]} 11... Qf7 {[%clk 0:02:57]} 12. cxd5 {[%clk 0:02:35.1]} 12...
exd5 {[%clk 0:02:55.9]} 13. Bd3 {[%clk 0:02:34.4]} 13... O-O {[%clk 0:02:53.6]}
14. Bxf5 {[%clk 0:02:31.7]} 14... Qxf5 {[%clk 0:02:53.8]} 15. Re1 {[%clk
0:02:28.3]} 15... h6 {[%clk 0:02:40.7]} 16. Be3 {[%clk 0:02:21.2]} 16... Nf6
{[%clk 0:02:02.8]} 17. h3 {[%clk 0:02:15.1]} 17... Nf4 {[%clk 0:01:34.3]} 18.
Ne5 {[%clk 0:01:52.9]} 18... Bxe5 {[%clk 0:01:08.3]} 19. dxe5 {[%clk 0:01:53.8]}
19... Qxe5 {[%clk 0:01:08.7]} 20. Qf3 {[%clk 0:01:44.2]} 20... Ne4 {[%clk
0:01:07.3]} 21. Nc5 {[%clk 0:01:32.5]} 21... Ne6 {[%clk 0:00:53.5]} 22. Nd7
{[%clk 0:01:08.2]} 22... Rxf3 {[%clk 0:00:47.2]} 23. Nxe5 {[%clk 0:01:07.9]}
23... Rf5 {[%clk 0:00:47.9]} 24. Nf3 {[%clk 0:00:59]} 24... c5 {[%clk
0:00:40.6]} 25. Rad1 {[%clk 0:00:50.6]} 25... Rd8 {[%clk 0:00:40.7]} 26. Nh4
{[%clk 0:00:37.6]} 26... Rf7 {[%clk 0:00:37.3]} 27. b4 {[%clk 0:00:27.8]} 27...
Nc3 {[%clk 0:00:28]} 28. Rd2 {[%clk 0:00:24.9]} 28... d4 {[%clk 0:00:28.3]} 29.
Bxh6 {[%clk 0:00:23.4]} 29... gxh6 {[%clk 0:00:26.9]} 30. Rxe6 {[%clk
0:00:22.9]} 30... cxb4 {[%clk 0:00:22.2]} 31. Rxh6 {[%clk 0:00:22.2]} 31... d3
{[%clk 0:00:20.3]} 32. Rg6+ {[%clk 0:00:20.7]} 32... Kf8 {[%clk 0:00:19.7]} 33.
Rh6 {[%clk 0:00:16.8]} 33... Ne4 {[%clk 0:00:19]} 34. Rd1 {[%clk 0:00:15.9]}
34... Kg7 {[%clk 0:00:17.7]} 35. Rg6+ {[%clk 0:00:15.6]} 35... Kh7 {[%clk
0:00:18.4]} 36. f3 {[%clk 0:00:15.1]} 36... Nc3 {[%clk 0:00:17.4]} 37. Rd2
{[%clk 0:00:14.9]} 37... Re7 {[%clk 0:00:17.7]} 38. Kf2 {[%clk 0:00:12.3]} 38...
Re2+ {[%clk 0:00:12.2]} 39. Rxe2 {[%clk 0:00:12.1]} 39... Nxe2 {[%clk
0:00:12.8]} 40. Re6 {[%clk 0:00:05.2]} 40... d2 {[%clk 0:00:12.3]} 41. Rxe2
{[%clk 0:00:05.4]} 41... d1=Q {[%clk 0:00:12.3]} 42. Nf5 {[%clk 0:00:05.6]}
42... Rd2 {[%clk 0:00:10.3]} 43. Ng3 {[%clk 0:00:03.3]} 43... Rxe2+ {[%clk
0:00:09.5]} 44. Nxe2 {[%clk 0:00:04.2]} 44... Qa1 {[%clk 0:00:09.4]} 45. g4
{[%clk 0:00:03.2]} 45... Qxa2 {[%clk 0:00:09.8]} 46. h4 {[%clk 0:00:03.8]} 46...
b3 {[%clk 0:00:09.5]} 0-1

[Event "Early-Titled-Tuesday-Blitz-November-28-2023"]
[Site "Chess.com"]
[Date "2023.11.28"]
[Round "3"]
[White "Wizard_97"]
[Black "tusplingher"]
[Result "0-1"]
[WhiteElo "2639"]
[BlackElo "2513"]
[TimeControl "180+1"]
[EndTime "8:29:23 PST"]
[Termination "tusplingher won by resignation"]

1. e4 {[%clk 0:03:00.9]} 1... c5 {[%clk 0:02:59.3]} 2. Nf3 {[%clk 0:03:00.7]}
2... d6 {[%clk 0:02:57.9]} 3. d4 {[%clk 0:02:59.2]} 3... Nf6 {[%clk 0:02:57.1]}
4. Nc3 {[%clk 0:02:58.4]} 4... cxd4 {[%clk 0:02:56.5]} 5. Nxd4 {[%clk
0:02:59.3]} 5... a6 {[%clk 0:02:56.5]} 6. Be3 {[%clk 0:02:51.7]} 6... Ng4 {[%clk
0:02:55.1]} 7. Bc1 {[%clk 0:02:51.3]} 7... Nf6 {[%clk 0:02:55.1]} 8. f3 {[%clk
0:02:51.3]} 8... e6 {[%clk 0:02:53.3]} 9. Be3 {[%clk 0:02:49.3]} 9... b5 {[%clk
0:02:51.4]} 10. a3 {[%clk 0:02:49.2]} 10... Bb7 {[%clk 0:02:29.6]} 11. Qd2
{[%clk 0:02:47.5]} 11... Nbd7 {[%clk 0:02:26.5]} 12. Qf2 {[%clk 0:02:47.4]}
12... Rc8 {[%clk 0:02:11]} 13. O-O-O {[%clk 0:02:41.3]} 13... Rxc3 {[%clk
0:01:59]} 14. bxc3 {[%clk 0:02:40.6]} 14... d5 {[%clk 0:01:59.3]} 15. Kb2 {[%clk
0:02:29.2]} 15... Qa5 {[%clk 0:01:54.1]} 16. Ra1 {[%clk 0:02:26.6]} 16... Nc5
{[%clk 0:01:51.9]} 17. Nb3 {[%clk 0:02:08.5]} 17... Na4+ {[%clk 0:01:48.6]} 18.
Kc1 {[%clk 0:02:08.7]} 18... Qxc3 {[%clk 0:01:34.4]} 19. Bd4 {[%clk 0:02:07.7]}
19... Qc7 {[%clk 0:01:29.5]} 20. e5 {[%clk 0:01:28.8]} 20... Nd7 {[%clk
0:01:28.1]} 21. f4 {[%clk 0:01:26.3]} 21... Be7 {[%clk 0:01:15.8]} 22. Bd3
{[%clk 0:00:59]} 22... Ndc5 {[%clk 0:01:05.6]} 23. Kb1 {[%clk 0:00:48.7]} 23...
Ne4 {[%clk 0:00:54.9]} 24. Bxe4 {[%clk 0:00:47.8]} 24... dxe4 {[%clk 0:00:52.9]}
25. f5 {[%clk 0:00:37.7]} 25... exf5 {[%clk 0:00:34.6]} 26. Qxf5 {[%clk
0:00:36.7]} 26... g6 {[%clk 0:00:32.5]} 27. Qh3 {[%clk 0:00:29.1]} 27... O-O
{[%clk 0:00:30.8]} 28. e6 {[%clk 0:00:24]} 28... f6 {[%clk 0:00:21.2]} 29. Rf1
{[%clk 0:00:17.6]} 29... Rc8 {[%clk 0:00:20.4]} 30. Rf2 {[%clk 0:00:17.3]} 30...
Bd5 {[%clk 0:00:19.2]} 31. Ka2 {[%clk 0:00:14.7]} 31... Qd6 {[%clk 0:00:11.2]}
32. Kb1 {[%clk 0:00:15]} 32... Bxb3 {[%clk 0:00:10.3]} 33. cxb3 {[%clk
0:00:12.1]} 33... Qxd4 {[%clk 0:00:10.5]} 34. bxa4 {[%clk 0:00:12.4]} 34... Qxf2
{[%clk 0:00:09]} 35. Qb3 {[%clk 0:00:11.3]} 35... Qe1+ {[%clk 0:00:08.9]} 36.
Ka2 {[%clk 0:00:11.5]} 36... Qd2+ {[%clk 0:00:08.7]} 37. Qb2 {[%clk 0:00:11.6]}
37... Rc2 {[%clk 0:00:08.8]} 38. Rb1 {[%clk 0:00:12.2]} 38... Rxb2+ {[%clk
0:00:08.3]} 39. Rxb2 {[%clk 0:00:13.1]} 39... Qd5+ {[%clk 0:00:08.8]} 40. Kb1
{[%clk 0:00:13.1]} 40... bxa4 {[%clk 0:00:09.5]} 41. Rb8+ {[%clk 0:00:13]} 41...
Kg7 {[%clk 0:00:09.5]} 42. Rb2 {[%clk 0:00:13.9]} 42... Qxe6 {[%clk 0:00:09.4]}
43. Rb6 {[%clk 0:00:13.8]} 43... Qxb6+ {[%clk 0:00:08.8]} 0-1

[Event "Early-Titled-Tuesday-Blitz-November-28-2023"]
[Site "Chess.com"]
[Date "2023.11.28"]
[Round "3"]
[White "Jamal-Jamal-Jamal"]
[Black "HalfIsCrayfish"]
[Result "1/2-1/2"]
[WhiteElo "2487"]
[BlackElo "2631"]
[TimeControl "180+1"]
[EndTime "8:29:23 PST"]
[Termination "Game drawn by repetition"]

1. d4 {[%clk 0:03:00.9]} 1... d5 {[%clk 0:02:59.7]} 2. c4 {[%clk 0:03:00.3]}
2... e6 {[%clk 0:03:00.2]} 3. Nf3 {[%clk 0:02:59.9]} 3... c6 {[%clk 0:03:00.8]}
4. e3 {[%clk 0:02:59.2]} 4... f5 {[%clk 0:03:00.5]} 5. g3 {[%clk 0:02:54]} 5...
Nf6 {[%clk 0:03:00.7]} 6. Bg2 {[%clk 0:02:54.5]} 6... Bd6 {[%clk 0:03:00.9]} 7.
O-O {[%clk 0:02:54.9]} 7... O-O {[%clk 0:03:01.2]} 8. b3 {[%clk 0:02:55.5]} 8...
Qe7 {[%clk 0:03:00.2]} 9. a4 {[%clk 0:02:56.1]} 9... b6 {[%clk 0:02:48.5]} 10.
Ba3 {[%clk 0:02:55.6]} 10... c5 {[%clk 0:02:48.6]} 11. Nbd2 {[%clk 0:02:48.3]}
11... Bb7 {[%clk 0:02:42.5]} 12. Rc1 {[%clk 0:02:43]} 12... Nbd7 {[%clk
0:02:30]} 13. Qe2 {[%clk 0:02:20.5]} 13... Rac8 {[%clk 0:02:26.5]} 14. Rfd1
{[%clk 0:02:20.4]} 14... Ne4 {[%clk 0:02:14.6]} 15. h4 {[%clk 0:01:50.1]} 15...
Rfd8 {[%clk 0:02:02.7]} 16. Nxe4 {[%clk 0:01:40.7]} 16... fxe4 {[%clk
0:01:57.3]} 17. Ng5 {[%clk 0:01:37]} 17... Rf8 {[%clk 0:01:17.3]} 18. Bh3 {[%clk
0:01:36.2]} 18... Rf6 {[%clk 0:01:09.6]} 19. Qg4 {[%clk 0:01:33.3]} 19... Nf8
{[%clk 0:00:49]} 20. dxc5 {[%clk 0:01:25.1]} 20... bxc5 {[%clk 0:00:48.1]} 21.
Bb2 {[%clk 0:01:14.3]} 21... Rg6 {[%clk 0:00:34.3]} 22. Qh5 {[%clk 0:01:09.8]}
22... h6 {[%clk 0:00:18.5]} 23. Nxe6 {[%clk 0:00:56.1]} 23... Bxg3 {[%clk
0:00:18.4]} 24. Nxf8 {[%clk 0:00:53.6]} 24... Bxf2+ {[%clk 0:00:17.9]} 25. Kxf2
{[%clk 0:00:52.9]} 25... Rxf8+ {[%clk 0:00:18.6]} 26. Ke2 {[%clk 0:00:52.4]}
26... Rg3 {[%clk 0:00:15.7]} 27. Rg1 {[%clk 0:00:51.3]} 27... Rff3 {[%clk
0:00:02.8]} 28. cxd5 {[%clk 0:00:36.9]} 28... Rxe3+ {[%clk 0:00:02.7]} 29. Kd2
{[%clk 0:00:32.8]} 29... Ref3 {[%clk 0:00:02.6]} 30. Kc2 {[%clk 0:00:26.1]}
30... e3 {[%clk 0:00:02.7]} 31. Kb1 {[%clk 0:00:25.7]} 31... Qe4+ {[%clk
0:00:02.4]} 32. Ka1 {[%clk 0:00:24.8]} 32... Bxd5 {[%clk 0:00:03.3]} 33. Rxg3
{[%clk 0:00:18.4]} 33... Rxg3 {[%clk 0:00:04.2]} 34. Bf5 {[%clk 0:00:18.3]}
34... Qe7 {[%clk 0:00:03.3]} 35. Bh7+ {[%clk 0:00:12.9]} 35... Kxh7 {[%clk
0:00:02.8]} 36. Qxd5 {[%clk 0:00:13.8]} 36... e2 {[%clk 0:00:02.8]} 37. Qf5+
{[%clk 0:00:13.3]} 37... Kh8 {[%clk 0:00:03.3]} 38. Qc8+ {[%clk 0:00:12.8]}
38... Kh7 {[%clk 0:00:04]} 39. Qf5+ {[%clk 0:00:13.3]} 39... Kh8 {[%clk
0:00:04]} 40. Re1 {[%clk 0:00:12]} 40... Rg2 {[%clk 0:00:02.6]} 41. Qc8+ {[%clk
0:00:11.3]} 41... Kh7 {[%clk 0:00:02.7]} 42. Qf5+ {[%clk 0:00:11.9]} 42... Kh8
{[%clk 0:00:03.3]} 43. Qc8+ {[%clk 0:00:07.1]} 43... Kh7 {[%clk 0:00:03.9]} 44.
Qf5+ {[%clk 0:00:07.4]} 44... Kh8 {[%clk 0:00:04.6]} 1/2-1/2